[Event "*** Titled Tuesday Blitz"]
[Site "Chess.com"]
[Date "2020.10.20"]
[Round "9"]
[White "djano"]
[Black "glebus008"]
[Result "1/2-1/2"]
[WhiteElo "2456"]
[BlackElo "2348"]
[TimeControl "180+1"]
[EndTime "11:50:10 PDT"]
[Termination "Game drawn - insufficient material"]

1. d4 {[%clk 0:02:58.4]} 1... d5 {[%clk 0:02:59.7]} 2. Nf3 {[%clk 0:02:57.7]}
2... Nf6 {[%clk 0:02:58.8]} 3. Bf4 {[%clk 0:02:58]} 3... c5 {[%clk 0:02:57.4]}
4. e3 {[%clk 0:02:58.2]} 4... Nc6 {[%clk 0:02:57.6]} 5. Nbd2 {[%clk 0:02:57.9]}
5... cxd4 {[%clk 0:02:56.1]} 6. exd4 {[%clk 0:02:58.8]} 6... Bg4 {[%clk
0:02:55.7]} 7. c3 {[%clk 0:02:56.3]} 7... e6 {[%clk 0:02:55.7]} 8. Qb3 {[%clk
0:02:48.7]} 8... Qc8 {[%clk 0:02:54]} 9. h3 {[%clk 0:02:45.9]} 9... Bh5 {[%clk
0:02:52.4]} 10. Bd3 {[%clk 0:02:45.9]} 10... Be7 {[%clk 0:02:48.3]} 11. O-O
{[%clk 0:02:45.9]} 11... Bg6 {[%clk 0:02:43.8]} 12. Bxg6 {[%clk 0:02:45.1]}
12... hxg6 {[%clk 0:02:43]} 13. Rae1 {[%clk 0:02:44.8]} 13... O-O {[%clk
0:02:41]} 14. Ne5 {[%clk 0:02:35.7]} 14... Nxe5 {[%clk 0:02:34.8]} 15. Bxe5
{[%clk 0:02:36.6]} 15... Rd8 {[%clk 0:02:26.9]} 16. Nf3 {[%clk 0:02:34.7]} 16...
Ne4 {[%clk 0:02:22.2]} 17. Re2 {[%clk 0:02:30.1]} 17... Bd6 {[%clk 0:02:19.7]}
18. Rfe1 {[%clk 0:02:30.1]} 18... Bxe5 {[%clk 0:02:15]} 19. Nxe5 {[%clk
0:02:31]} 19... Qc7 {[%clk 0:02:06.4]} 20. f3 {[%clk 0:02:25.3]} 20... Nf6
{[%clk 0:02:03.8]} 21. g4 {[%clk 0:02:22.8]} 21... Rab8 {[%clk 0:01:55.7]} 22.
Kg2 {[%clk 0:02:15.2]} 22... b5 {[%clk 0:01:53.3]} 23. Qa3 {[%clk 0:02:05.5]}
23... a5 {[%clk 0:01:42.9]} 24. h4 {[%clk 0:01:42.4]} 24... Rdc8 {[%clk
0:01:38.8]} 25. Qb3 {[%clk 0:01:34]} 25... b4 {[%clk 0:01:34]} 26. cxb4 {[%clk
0:01:27.8]} 26... Rxb4 {[%clk 0:01:29.1]} 27. Qe3 {[%clk 0:01:27.9]} 27... Qb6
{[%clk 0:01:12.6]} 28. a3 {[%clk 0:01:16]} 28... Rxb2 {[%clk 0:01:08.3]} 29. h5
{[%clk 0:01:11.1]} 29... gxh5 {[%clk 0:00:59.3]} 30. g5 {[%clk 0:01:10.5]} 30...
Ne8 {[%clk 0:00:44.1]} 31. g6 {[%clk 0:01:09.9]} 31... f6 {[%clk 0:00:31]} 32.
Nd3 {[%clk 0:01:04.8]} 32... Rxe2+ {[%clk 0:00:29.8]} 33. Rxe2 {[%clk
0:01:05.7]} 33... e5 {[%clk 0:00:23.6]} 34. dxe5 {[%clk 0:01:00.2]} 34... Qxe3
{[%clk 0:00:24.5]} 35. Rxe3 {[%clk 0:01:01.1]} 35... Rc3 {[%clk 0:00:17.1]} 36.
Kf2 {[%clk 0:00:56.5]} 36... Rxa3 {[%clk 0:00:12.4]} 37. e6 {[%clk 0:00:56.6]}
37... Kf8 {[%clk 0:00:10.7]} 38. Nf4 {[%clk 0:00:54.6]} 38... Rxe3 {[%clk
0:00:08.8]} 39. Kxe3 {[%clk 0:00:55.5]} 39... Nc7 {[%clk 0:00:08.4]} 40. Kd4
{[%clk 0:00:53.9]} 40... Ke7 {[%clk 0:00:07.5]} 41. Nxh5 {[%clk 0:00:50.7]}
41... Nxe6+ {[%clk 0:00:08.4]} 42. Kxd5 {[%clk 0:00:49.6]} 42... a4 {[%clk
0:00:09.1]} 43. Kc4 {[%clk 0:00:49.5]} 43... a3 {[%clk 0:00:10]} 44. Kb3 {[%clk
0:00:49.7]} 44... Kd6 {[%clk 0:00:09.4]} 45. Kxa3 {[%clk 0:00:48.9]} 45... Ke5
{[%clk 0:00:09.5]} 46. Kb4 {[%clk 0:00:45.5]} 46... Kf5 {[%clk 0:00:09.6]} 47.
Kc4 {[%clk 0:00:43.8]} 47... Kxg6 {[%clk 0:00:09.2]} 48. Ng3 {[%clk 0:00:44.3]}
48... Kg5 {[%clk 0:00:08.9]} 49. Kd3 {[%clk 0:00:41.6]} 49... Kf4 {[%clk
0:00:08.4]} 50. Ne4 {[%clk 0:00:37.6]} 50... Kxf3 {[%clk 0:00:07.4]} 51. Nd6
{[%clk 0:00:38.5]} 51... Ng5 {[%clk 0:00:06.3]} 52. Ne8 {[%clk 0:00:37.2]} 52...
Ne6 {[%clk 0:00:05.9]} 53. Kc4 {[%clk 0:00:37.6]} 53... f5 {[%clk 0:00:05.7]}
54. Kd5 {[%clk 0:00:37.5]} 54... Nf4+ {[%clk 0:00:05.6]} 55. Ke5 {[%clk
0:00:38]} 55... Kg4 {[%clk 0:00:05.5]} 56. Nxg7 {[%clk 0:00:36]} 56... Ng6+
{[%clk 0:00:05.7]} 57. Kd4 {[%clk 0:00:35.7]} 57... f4 {[%clk 0:00:06.6]} 58.
Ke4 {[%clk 0:00:34.7]} 58... f3 {[%clk 0:00:07.5]} 59. Ke3 {[%clk 0:00:34.7]}
59... Kg3 {[%clk 0:00:07.8]} 60. Nf5+ {[%clk 0:00:32.8]} 60... Kg2 {[%clk
0:00:08.7]} 61. Ke4 {[%clk 0:00:18]} 61... f2 {[%clk 0:00:08.4]} 62. Ne3+ {[%clk
0:00:18.6]} 62... Kg1 {[%clk 0:00:08.1]} 63. Kf3 {[%clk 0:00:18.6]} 63... Nh4+
{[%clk 0:00:07.7]} 64. Kg3 {[%clk 0:00:15.4]} 64... Ng2 {[%clk 0:00:08.6]} 65.
Nxg2 {[%clk 0:00:14.5]} 65... f1=Q {[%clk 0:00:08.8]} 66. Nf4 {[%clk 0:00:15.4]}
66... Qf2+ {[%clk 0:00:08.4]} 67. Kg4 {[%clk 0:00:15.6]} 67... Kf1 {[%clk
0:00:08.7]} 68. Nh3 {[%clk 0:00:15.6]} 68... Qa7 {[%clk 0:00:09.3]} 69. Nf4
{[%clk 0:00:16.5]} 69... Qa4 {[%clk 0:00:08.8]} 70. Kf5 {[%clk 0:00:16.1]} 70...
Kf2 {[%clk 0:00:08.7]} 71. Ne6 {[%clk 0:00:17]} 71... Kf3 {[%clk 0:00:08.2]} 72.
Ng5+ {[%clk 0:00:17.3]} 72... Ke3 {[%clk 0:00:08.2]} 73. Ne6 {[%clk 0:00:18.2]}
73... Qe4+ {[%clk 0:00:07.5]} 74. Kf6 {[%clk 0:00:17.7]} 74... Qd5 {[%clk
0:00:06.6]} 75. Ng5 {[%clk 0:00:17.7]} 75... Kf4 {[%clk 0:00:05.6]} 76. Ne6+
{[%clk 0:00:18.2]} 76... Kg4 {[%clk 0:00:05.7]} 77. Ng7 {[%clk 0:00:18]} 77...
Qg5+ {[%clk 0:00:05.3]} 78. Kf7 {[%clk 0:00:18.1]} 78... Qh6 {[%clk 0:00:05.4]}
79. Ne6 {[%clk 0:00:17.7]} 79... Kf5 {[%clk 0:00:04.9]} 80. Ng7+ {[%clk
0:00:18.2]} 80... Ke5 {[%clk 0:00:05]} 81. Ne8 {[%clk 0:00:18.6]} 81... Qe6+
{[%clk 0:00:04.6]} 82. Kf8 {[%clk 0:00:18.7]} 82... Qd7 {[%clk 0:00:04.7]} 83.
Ng7 {[%clk 0:00:18.3]} 83... Kf6 {[%clk 0:00:04.5]} 84. Nh5+ {[%clk 0:00:17.9]}
84... Kg6 {[%clk 0:00:04.2]} 85. Nf4+ {[%clk 0:00:18.2]} 85... Kf5 {[%clk
0:00:04.3]} 86. Ng6 {[%clk 0:00:18]} 86... Qd8+ {[%clk 0:00:03.8]} 87. Kg7
{[%clk 0:00:16.7]} 87... Qd5 {[%clk 0:00:04.7]} 88. Ne7+ {[%clk 0:00:16.4]}
88... Ke6 {[%clk 0:00:04.7]} 89. Nxd5 {[%clk 0:00:17.3]} 1/2-1/2

[Event "*** Titled Tuesday Blitz"]
[Site "Chess.com"]
[Date "2020.10.20"]
[Round "9"]
[White "VerdeNotte"]
[Black "ArjunErigaisi2003"]
[Result "1-0"]
[WhiteElo "2882"]
[BlackElo "3030"]
[TimeControl "180+1"]
[EndTime "11:50:32 PDT"]
[Termination "VerdeNotte won by resignation"]

1. e4 {[%clk 0:03:00.9]} 1... e6 {[%clk 0:02:58.8]} 2. d4 {[%clk 0:03:00.9]}
2... d5 {[%clk 0:02:59]} 3. e5 {[%clk 0:03:01.5]} 3... c5 {[%clk 0:02:59.1]} 4.
c3 {[%clk 0:03:02]} 4... Nc6 {[%clk 0:02:59.6]} 5. Nf3 {[%clk 0:03:01.9]} 5...
Qb6 {[%clk 0:03:00.1]} 6. Bd3 {[%clk 0:03:01.9]} 6... cxd4 {[%clk 0:02:56.7]} 7.
O-O {[%clk 0:03:01.8]} 7... Bd7 {[%clk 0:02:55.7]} 8. Re1 {[%clk 0:02:59.1]}
8... Nge7 {[%clk 0:02:52]} 9. h4 {[%clk 0:02:58.7]} 9... Rc8 {[%clk 0:02:49.9]}
10. Nbd2 {[%clk 0:02:56.2]} 10... dxc3 {[%clk 0:02:30.4]} 11. bxc3 {[%clk
0:02:57.1]} 11... Na5 {[%clk 0:02:31]} 12. Rb1 {[%clk 0:02:50.2]} 12... Qc7
{[%clk 0:02:30.4]} 13. Nb3 {[%clk 0:02:43]} 13... Nec6 {[%clk 0:02:21.7]} 14.
Nbd4 {[%clk 0:02:30.9]} 14... Nxd4 {[%clk 0:02:17.4]} 15. cxd4 {[%clk
0:02:31.4]} 15... Be7 {[%clk 0:02:14.3]} 16. Bg5 {[%clk 0:02:29.7]} 16... Ba3
{[%clk 0:01:51.4]} 17. h5 {[%clk 0:02:12.1]} 17... h6 {[%clk 0:01:51]} 18. Bf4
{[%clk 0:02:02]} 18... a6 {[%clk 0:01:38.9]} 19. Kh2 {[%clk 0:01:39.7]} 19... b5
{[%clk 0:01:36.8]} 20. Nh4 {[%clk 0:01:32.4]} 20... Qc3 {[%clk 0:01:20.8]} 21.
Bf1 {[%clk 0:01:26.4]} 21... Qc2 {[%clk 0:01:16.1]} 22. Qg4 {[%clk 0:01:21.7]}
22... Kf8 {[%clk 0:01:04.8]} 23. Qf3 {[%clk 0:01:19.4]} 23... Rc3 {[%clk
0:00:52.9]} 24. Be3 {[%clk 0:01:18.5]} 24... Ke8 {[%clk 0:00:48.9]} 25. Qg4
{[%clk 0:01:13.6]} 25... Rg8 {[%clk 0:00:44.3]} 26. Be2 {[%clk 0:00:53.9]} 26...
Nc4 {[%clk 0:00:34.1]} 27. Bxh6 {[%clk 0:00:51.1]} 27... Qe4 {[%clk 0:00:34.2]}
28. Qxe4 {[%clk 0:00:40.9]} 28... dxe4 {[%clk 0:00:35.1]} 29. Bg5 {[%clk
0:00:41.3]} 29... Bc6 {[%clk 0:00:32.7]} 30. Rb3 {[%clk 0:00:36.2]} 30... Rxb3
{[%clk 0:00:30.3]} 31. axb3 {[%clk 0:00:37.1]} 31... Na5 {[%clk 0:00:31.2]} 32.
Bd1 {[%clk 0:00:31.2]} 32... Bd5 {[%clk 0:00:29.8]} 33. Bc2 {[%clk 0:00:24.7]}
33... Bb4 {[%clk 0:00:24.3]} 34. Re2 {[%clk 0:00:22.4]} 34... Nxb3 {[%clk
0:00:22.8]} 35. Bxb3 {[%clk 0:00:21.4]} 35... Bxb3 {[%clk 0:00:22.7]} 36. Rb2
{[%clk 0:00:22.1]} 36... Bc3 {[%clk 0:00:17.8]} 37. Rxb3 {[%clk 0:00:22.2]}
37... Bxd4 {[%clk 0:00:18.4]} 38. Bf4 {[%clk 0:00:21.1]} 38... Bxf2 {[%clk
0:00:18]} 39. g3 {[%clk 0:00:20.3]} 39... f6 {[%clk 0:00:12.4]} 40. Kg2 {[%clk
0:00:19]} 40... Bd4 {[%clk 0:00:08.9]} 41. Ng6 {[%clk 0:00:19.3]} 41... Kf7
{[%clk 0:00:08.2]} 42. exf6 {[%clk 0:00:17.4]} 42... gxf6 {[%clk 0:00:09.1]} 43.
Be3 {[%clk 0:00:17.6]} 43... e5 {[%clk 0:00:07.6]} 44. Kf2 {[%clk 0:00:15.9]}
44... Rc8 {[%clk 0:00:07.3]} 45. Ke2 {[%clk 0:00:13.4]} 45... Rc2+ {[%clk
0:00:07.4]} 46. Kf1 {[%clk 0:00:11]} 46... Rh2 {[%clk 0:00:08.3]} 47. g4 {[%clk
0:00:11.1]} 47... f5 {[%clk 0:00:07]} 48. gxf5 {[%clk 0:00:06.6]} 48... Rxh5
{[%clk 0:00:07]} 49. Bxd4 {[%clk 0:00:05.9]} 49... exd4 {[%clk 0:00:07.9]} 50.
Ne5+ {[%clk 0:00:05.3]} 50... Kf6 {[%clk 0:00:07.7]} 51. Nc6 {[%clk 0:00:05.4]}
51... Rxf5+ {[%clk 0:00:07.7]} 52. Ke2 {[%clk 0:00:04.7]} 52... d3+ {[%clk
0:00:08.1]} 53. Ke3 {[%clk 0:00:04.6]} 53... Rd5 {[%clk 0:00:05.4]} 54. Rb2
{[%clk 0:00:03.7]} 54... Rd6 {[%clk 0:00:05.6]} 55. Nd4 {[%clk 0:00:02.9]} 55...
Ke5 {[%clk 0:00:05.7]} 56. Rh2 {[%clk 0:00:02.6]} 56... d2 {[%clk 0:00:02.1]}
57. Rxd2 {[%clk 0:00:02.5]} 57... Rd5 {[%clk 0:00:02.1]} 58. Nc6+ {[%clk
0:00:02.6]} 58... Ke6 {[%clk 0:00:02.2]} 59. Nd4+ {[%clk 0:00:03.5]} 59... Kd6
{[%clk 0:00:02.4]} 60. Rh2 {[%clk 0:00:03.5]} 60... b4 {[%clk 0:00:02.9]} 61.
Kxe4 {[%clk 0:00:03.7]} 61... Re5+ {[%clk 0:00:03]} 62. Kd3 {[%clk 0:00:04.2]}
62... Rg5 {[%clk 0:00:03.2]} 63. Rh8 {[%clk 0:00:04.7]} 63... Kd5 {[%clk
0:00:03.2]} 64. Rd8+ {[%clk 0:00:04.8]} 64... Ke5 {[%clk 0:00:03.8]} 65. Kc4
{[%clk 0:00:04.7]} 65... Rg4 {[%clk 0:00:03.9]} 66. Re8+ {[%clk 0:00:04.1]}
66... Kd6 {[%clk 0:00:03.9]} 67. Rd8+ {[%clk 0:00:04.6]} 67... Kc7 {[%clk
0:00:04.4]} 68. Rd5 {[%clk 0:00:04.5]} 68... Kb6 {[%clk 0:00:03.6]} 69. Kxb4
{[%clk 0:00:04.7]} 69... Rg6 {[%clk 0:00:03.6]} 70. Kc4 {[%clk 0:00:04.8]} 70...
Rh6 {[%clk 0:00:04]} 71. Rg5 {[%clk 0:00:04.8]} 71... Rd6 {[%clk 0:00:03.9]} 72.
Rg1 {[%clk 0:00:05.2]} 72... Rh6 {[%clk 0:00:04.1]} 73. Rb1+ {[%clk 0:00:05.7]}
73... Kc7 {[%clk 0:00:04.7]} 74. Rc1 {[%clk 0:00:04.5]} 74... Kb7 {[%clk
0:00:04.9]} 75. Rc2 {[%clk 0:00:03.7]} 75... Rb6 {[%clk 0:00:05.1]} 76. Rg2
{[%clk 0:00:04.1]} 76... Rf6 {[%clk 0:00:05.5]} 77. Kc5 {[%clk 0:00:02.7]} 77...
Rf7 {[%clk 0:00:03.9]} 78. Rb2+ {[%clk 0:00:02.5]} 78... Kc7 {[%clk 0:00:04]}
79. Kd5 {[%clk 0:00:03]} 79... Rd7+ {[%clk 0:00:03.8]} 80. Kc5 {[%clk
0:00:03.1]} 80... Rh7 {[%clk 0:00:04.3]} 81. Ne6+ {[%clk 0:00:03.3]} 81... Kc8
{[%clk 0:00:04.9]} 82. Nf4 {[%clk 0:00:03.7]} 82... Rc7+ {[%clk 0:00:04.3]} 83.
Kd6 {[%clk 0:00:03.9]} 83... Rd7+ {[%clk 0:00:04.9]} 84. Ke6 {[%clk 0:00:04.4]}
84... Rb7 {[%clk 0:00:04.8]} 85. Rc2+ {[%clk 0:00:04.8]} 85... Rc7 {[%clk
0:00:04.8]} 86. Rh2 {[%clk 0:00:05.5]} 86... Rc6+ {[%clk 0:00:04]} 87. Kd5
{[%clk 0:00:06]} 87... Rc1 {[%clk 0:00:04.4]} 88. Ne6 {[%clk 0:00:05.8]} 88...
Kb7 {[%clk 0:00:03.7]} 89. Nc5+ {[%clk 0:00:05.4]} 89... Kb6 {[%clk 0:00:03.3]}
90. Rb2+ {[%clk 0:00:05.5]} 90... Ka7 {[%clk 0:00:02.9]} 91. Rb7+ {[%clk
0:00:05.2]} 91... Ka8 {[%clk 0:00:03]} 92. Rh7 {[%clk 0:00:06.1]} 92... Rg1
{[%clk 0:00:02.8]} 93. Kc6 {[%clk 0:00:04.8]} 93... Rg6+ {[%clk 0:00:03.2]} 94.
Kc7 {[%clk 0:00:05.3]} 94... a5 {[%clk 0:00:03.4]} 95. Nd7 {[%clk 0:00:05.8]}
95... a4 {[%clk 0:00:03.4]} 96. Rh5 {[%clk 0:00:05.8]} 96... Ra6 {[%clk
0:00:02.7]} 97. Nb6+ {[%clk 0:00:06]} 97... Ka7 {[%clk 0:00:03.3]} 98. Nc8+
{[%clk 0:00:06.5]} 98... Ka8 {[%clk 0:00:04.2]} 99. Rb5 {[%clk 0:00:06.3]} 99...
Rc6+ {[%clk 0:00:01.7]} 100. Kxc6 {[%clk 0:00:06.6]} 1-0

[Event "*** Titled Tuesday Blitz"]
[Site "Chess.com"]
[Date "2020.10.20"]
[Round "9"]
[White "Legendinunknown"]
[Black "TrimitziosP7"]
[Result "0-1"]
[WhiteElo "2611"]
[BlackElo "2772"]
[TimeControl "180+1"]
[EndTime "11:50:39 PDT"]
[Termination "TrimitziosP7 won by resignation"]

1. d4 {[%clk 0:03:00.9]} 1... Nf6 {[%clk 0:02:58.7]} 2. c4 {[%clk 0:03:01.1]}
2... e6 {[%clk 0:02:57.1]} 3. Nc3 {[%clk 0:03:00.1]} 3... Bb4 {[%clk 0:02:52.1]}
4. f3 {[%clk 0:02:59.7]} 4... d5 {[%clk 0:02:49.5]} 5. a3 {[%clk 0:02:58.2]}
5... Be7 {[%clk 0:02:39.9]} 6. e4 {[%clk 0:02:57]} 6... dxe4 {[%clk 0:02:40]} 7.
fxe4 {[%clk 0:02:57.9]} 7... e5 {[%clk 0:02:37.6]} 8. d5 {[%clk 0:02:55.2]} 8...
a5 {[%clk 0:02:34]} 9. Nf3 {[%clk 0:02:53.6]} 9... Nbd7 {[%clk 0:02:33.8]} 10.
Be3 {[%clk 0:02:51.6]} 10... O-O {[%clk 0:02:31.7]} 11. Be2 {[%clk 0:02:49.2]}
11... Bc5 {[%clk 0:02:25.6]} 12. Qd2 {[%clk 0:02:46.6]} 12... Qe7 {[%clk
0:02:22.1]} 13. h3 {[%clk 0:02:43.5]} 13... Nh5 {[%clk 0:02:15.4]} 14. O-O
{[%clk 0:02:17.8]} 14... Nf4 {[%clk 0:02:09.1]} 15. Kh2 {[%clk 0:02:10.9]} 15...
Ra6 {[%clk 0:02:08.7]} 16. g3 {[%clk 0:02:00.5]} 16... Bxe3 {[%clk 0:02:05.3]}
17. Qxe3 {[%clk 0:02:01.4]} 17... Nxe2 {[%clk 0:02:03.4]} 18. Qxe2 {[%clk
0:02:02.3]} 18... a4 {[%clk 0:02:00.4]} 19. Ne1 {[%clk 0:01:38]} 19... Nc5
{[%clk 0:01:52.4]} 20. Kg2 {[%clk 0:01:08.3]} 20... Nb3 {[%clk 0:01:41.1]} 21.
Rd1 {[%clk 0:01:06]} 21... Nd4 {[%clk 0:01:37.6]} 22. Qe3 {[%clk 0:01:05.3]}
22... f5 {[%clk 0:01:33.4]} 23. Nf3 {[%clk 0:00:32.5]} 23... f4 {[%clk
0:01:27.3]} 24. gxf4 {[%clk 0:00:30.7]} 24... Rg6+ {[%clk 0:01:24.1]} 25. Kh2
{[%clk 0:00:28.9]} 25... Bxh3 {[%clk 0:01:15.7]} 26. Nxe5 {[%clk 0:00:13.6]}
26... Rh6 {[%clk 0:01:12.5]} 27. Kg1 {[%clk 0:00:13.8]} 27... Qh4 {[%clk
0:01:07.3]} 28. Rxd4 {[%clk 0:00:11.5]} 28... Bxf1 {[%clk 0:01:02.2]} 29. Kxf1
{[%clk 0:00:12.4]} 29... Rxf4+ {[%clk 0:01:00]} 30. Ke2 {[%clk 0:00:12.5]} 30...
Qh2+ {[%clk 0:00:56.2]} 31. Kd3 {[%clk 0:00:12.9]} 31... Rh3 {[%clk 0:00:54.3]}
32. c5 {[%clk 0:00:10.7]} 32... Rf1 {[%clk 0:00:36.5]} 33. Qxh3 {[%clk
0:00:09.2]} 33... Qxh3+ {[%clk 0:00:36.1]} 34. Kc4 {[%clk 0:00:10.1]} 34... Qh2
{[%clk 0:00:29.9]} 35. Nd3 {[%clk 0:00:09.8]} 35... Qc2 {[%clk 0:00:28]} 36. Nb4
{[%clk 0:00:08.2]} 36... Qxb2 {[%clk 0:00:27.5]} 37. d6 {[%clk 0:00:07.7]} 37...
cxd6 {[%clk 0:00:24.4]} 38. cxd6 {[%clk 0:00:08.6]} 38... Qb3+ {[%clk
0:00:16.1]} 39. Kb5 {[%clk 0:00:09]} 39... Qxc3 {[%clk 0:00:12.7]} 40. d7 {[%clk
0:00:09.4]} 40... Rf8 {[%clk 0:00:13.2]} 41. d8=Q {[%clk 0:00:09.7]} 41... Rxd8
{[%clk 0:00:13]} 42. Rxd8+ {[%clk 0:00:10.6]} 42... Kf7 {[%clk 0:00:13.6]} 43.
Rd7+ {[%clk 0:00:11]} 43... Ke6 {[%clk 0:00:13.7]} 44. Rxb7 {[%clk 0:00:11]}
44... h5 {[%clk 0:00:13.3]} 45. Rb6+ {[%clk 0:00:10.8]} 45... Kf7 {[%clk
0:00:13.3]} 46. Kxa4 {[%clk 0:00:10.3]} 46... h4 {[%clk 0:00:13.4]} 47. Rc6
{[%clk 0:00:10.9]} 47... Qf3 {[%clk 0:00:11.1]} 48. Rc7+ {[%clk 0:00:07.7]}
48... Kg8 {[%clk 0:00:11.1]} 49. Rc8+ {[%clk 0:00:08.2]} 49... Kh7 {[%clk
0:00:11.2]} 50. Rc2 {[%clk 0:00:08]} 50... h3 {[%clk 0:00:10.5]} 51. Kb5 {[%clk
0:00:08.7]} 51... Qg2 {[%clk 0:00:08.4]} 52. a4 {[%clk 0:00:07.5]} 52... Qxc2
{[%clk 0:00:07.8]} 53. Nxc2 {[%clk 0:00:08.4]} 53... h2 {[%clk 0:00:08.7]} 54.
a5 {[%clk 0:00:08.1]} 54... h1=Q {[%clk 0:00:09.6]} 55. Nb4 {[%clk 0:00:08.6]}
55... Qxe4 {[%clk 0:00:09.6]} 56. Nc6 {[%clk 0:00:09.5]} 56... Qb1+ {[%clk
0:00:08.2]} 57. Kc5 {[%clk 0:00:09.6]} 57... Qa2 {[%clk 0:00:08.2]} 58. Kb6
{[%clk 0:00:10.1]} 58... g5 {[%clk 0:00:08.6]} 59. a6 {[%clk 0:00:10.1]} 59...
g4 {[%clk 0:00:09.1]} 60. a7 {[%clk 0:00:10.5]} 60... g3 {[%clk 0:00:09.6]} 61.
Kb7 {[%clk 0:00:11.1]} 61... g2 {[%clk 0:00:09]} 62. a8=Q {[%clk 0:00:10.7]}
62... Qxa8+ {[%clk 0:00:09.4]} 63. Kxa8 {[%clk 0:00:11.6]} 63... g1=Q {[%clk
0:00:09.7]} 64. Kb7 {[%clk 0:00:11.7]} 64... Kg6 {[%clk 0:00:10.2]} 65. Kc7
{[%clk 0:00:12.6]} 65... Kf7 {[%clk 0:00:10.2]} 66. Kd6 {[%clk 0:00:13.5]} 66...
Qd1+ {[%clk 0:00:09.6]} 67. Kc5 {[%clk 0:00:12.5]} 67... Ke6 {[%clk 0:00:09.3]}
68. Nd4+ {[%clk 0:00:12.8]} 68... Ke5 {[%clk 0:00:09.6]} 69. Nc6+ {[%clk
0:00:13]} 69... Ke4 {[%clk 0:00:10]} 70. Nb4 {[%clk 0:00:13.1]} 70... Qd7 {[%clk
0:00:08.8]} 71. Nc6 {[%clk 0:00:12.8]} 71... Qc7 {[%clk 0:00:08.9]} 72. Kb5
{[%clk 0:00:13.2]} 72... Kd5 {[%clk 0:00:09.2]} 73. Nb4+ {[%clk 0:00:14.1]}
73... Kd4 {[%clk 0:00:09.4]} 74. Nc6+ {[%clk 0:00:14.3]} 74... Kc3 {[%clk
0:00:09.4]} 75. Kc5 {[%clk 0:00:14.6]} 75... Kb3 {[%clk 0:00:06.5]} 76. Kd5
{[%clk 0:00:14.5]} 76... Ka4 {[%clk 0:00:06.9]} 77. Nd4 {[%clk 0:00:14.2]} 77...
Qd7+ {[%clk 0:00:05.3]} 78. Kc5 {[%clk 0:00:14.1]} 78... Qe7+ {[%clk 0:00:03]}
79. Kd5 {[%clk 0:00:14.1]} 79... Qd8+ {[%clk 0:00:02.8]} 80. Kc5 {[%clk
0:00:13.5]} 80... Qa5+ {[%clk 0:00:02.3]} 81. Kc4 {[%clk 0:00:13.9]} 81... Qb4+
{[%clk 0:00:02.3]} 82. Kd5 {[%clk 0:00:14.1]} 82... Qb7+ {[%clk 0:00:02.8]} 83.
Kc5 {[%clk 0:00:14.2]} 83... Qa7+ {[%clk 0:00:02.6]} 84. Kd5 {[%clk 0:00:14.4]}
84... Qa8+ {[%clk 0:00:02.5]} 85. Kc5 {[%clk 0:00:14.6]} 85... Ka5 {[%clk
0:00:03]} 86. Nc6+ {[%clk 0:00:14.5]} 86... Ka6 {[%clk 0:00:03.1]} 87. Nb4+
{[%clk 0:00:15]} 87... Kb7 {[%clk 0:00:03.4]} 88. Kb5 {[%clk 0:00:15.3]} 88...
Qe8+ {[%clk 0:00:03.2]} 89. Kc5 {[%clk 0:00:15.5]} 89... Qe5+ {[%clk 0:00:02.8]}
90. Kc4 {[%clk 0:00:15.8]} 90... Kb6 {[%clk 0:00:02.8]} 91. Nd5+ {[%clk
0:00:16.2]} 91... Kc6 {[%clk 0:00:03]} 92. Nb4+ {[%clk 0:00:16.5]} 92... Kd6
{[%clk 0:00:03.3]} 93. Nd3 {[%clk 0:00:15.7]} 93... Qe4+ {[%clk 0:00:03.5]} 94.
Kc3 {[%clk 0:00:16.1]} 94... Kd5 {[%clk 0:00:03.9]} 95. Nb4+ {[%clk 0:00:16.7]}
95... Kc5 {[%clk 0:00:04.4]} 96. Nd3+ {[%clk 0:00:16.8]} 96... Kb5 {[%clk
0:00:05]} 97. Nb2 {[%clk 0:00:16.2]} 97... Qe3+ {[%clk 0:00:03.7]} 98. Kc2
{[%clk 0:00:16.6]} 98... Kb4 {[%clk 0:00:04.1]} 99. Nd3+ {[%clk 0:00:15.1]}
99... Kc4 {[%clk 0:00:04.5]} 100. Nb2+ {[%clk 0:00:15.5]} 100... Kd4 {[%clk
0:00:05]} 101. Na4 {[%clk 0:00:15.9]} 101... Qa3 {[%clk 0:00:04.4]} 102. Nb2
{[%clk 0:00:15.5]} 102... Qa2 {[%clk 0:00:04.5]} 103. Kc1 {[%clk 0:00:14.1]}
103... Kc3 {[%clk 0:00:04.6]} 104. Nd1+ {[%clk 0:00:14.7]} 104... Kb3 {[%clk
0:00:04.7]} 105. Ne3 {[%clk 0:00:15]} 105... Qe2 {[%clk 0:00:03.9]} 0-1

[Event "*** Titled Tuesday Blitz"]
[Site "Chess.com"]
[Date "2020.10.20"]
[Round "10"]
[White "Smile2005"]
[Black "Chessdreamer2020"]
[Result "0-1"]
[WhiteElo "2354"]
[BlackElo "2471"]
[TimeControl "180+1"]
[EndTime "11:51:39 PDT"]
[Termination "Chessdreamer2020 won by resignation"]

1. Nf3 {[%clk 0:02:57.3]} 1... d6 {[%clk 0:02:59.4]} 2. g3 {[%clk 0:02:57]} 2...
e5 {[%clk 0:02:59.1]} 3. Bg2 {[%clk 0:02:57.9]} 3... Nc6 {[%clk 0:02:59.4]} 4.
O-O {[%clk 0:02:58.2]} 4... g6 {[%clk 0:02:59.8]} 5. d3 {[%clk 0:02:58.3]} 5...
Bg7 {[%clk 0:03:00.2]} 6. c4 {[%clk 0:02:58.3]} 6... Nge7 {[%clk 0:03:00.7]} 7.
Nc3 {[%clk 0:02:58.5]} 7... O-O {[%clk 0:03:01.2]} 8. Rb1 {[%clk 0:02:58.9]}
8... a5 {[%clk 0:02:57.3]} 9. a3 {[%clk 0:02:58.5]} 9... f5 {[%clk 0:02:56.6]}
10. b4 {[%clk 0:02:58.3]} 10... e4 {[%clk 0:02:56.4]} 0-1

[Event "*** Titled Tuesday Blitz"]
[Site "Chess.com"]
[Date "2020.10.20"]
[Round "10"]
[White "capatl"]
[Black "ciucas1892"]
[Result "0-1"]
[WhiteElo "2501"]
[BlackElo "2367"]
[TimeControl "180+1"]
[EndTime "11:52:47 PDT"]
[Termination "ciucas1892 won by resignation"]

1. c4 {[%clk 0:03:00.9]} 1... g6 {[%clk 0:02:54.5]} 2. Nc3 {[%clk 0:03:00.9]}
2... Bg7 {[%clk 0:02:54.3]} 3. d4 {[%clk 0:03:00.1]} 3... c5 {[%clk 0:02:55.2]}
4. Nf3 {[%clk 0:02:52.4]} 4... cxd4 {[%clk 0:02:54.3]} 5. Nxd4 {[%clk
0:02:50.2]} 5... Nc6 {[%clk 0:02:55.2]} 6. e3 {[%clk 0:02:48.3]} 6... Nf6 {[%clk
0:02:55.2]} 7. Be2 {[%clk 0:02:47.3]} 7... O-O {[%clk 0:02:54.9]} 8. O-O {[%clk
0:02:46.8]} 8... d5 {[%clk 0:02:55.2]} 9. cxd5 {[%clk 0:02:43.4]} 9... Nxd5
{[%clk 0:02:54.7]} 10. Nxc6 {[%clk 0:02:42.8]} 10... bxc6 {[%clk 0:02:53.6]} 11.
Na4 {[%clk 0:02:36.8]} 11... Bf5 {[%clk 0:02:27.1]} 12. Bd2 {[%clk 0:02:37.7]}
12... Nb6 {[%clk 0:02:19.2]} 13. Rc1 {[%clk 0:02:38.5]} 13... Nxa4 {[%clk
0:02:16.8]} 14. Qxa4 {[%clk 0:02:36.1]} 14... Qxd2 {[%clk 0:02:16.8]} 0-1